fUSD/lending_fUSD_20260106
["ID","MTS","AMOUNT","RATE_DAILY","PERIOD"]
[400505344,1767678643588,-159.2619942,0.00024187,4]
[400505346,1767678643597,-150.0,0.00024188,4]
[400505348,1767678643606,-2219.98656035,0.00024199,2]
[400505350,1767678643615,-150.0,0.000242,4]
[400505352,1767678643627,-674.98361452,0.000242,2]
[400505354,1767678643638,-150.0,0.00024208,4]
[400505356,1767678643647,-421.21037793,0.0002421,2]
[400505358,1767678643656,-3689.74283707,0.0002421,2]
[400505360,1767678643665,-173.08990061,0.00024213,4]
[400505362,1767678643674,-245.35927834,0.00024213,4]
[400505364,1767678643684,-250.74529518,0.00024213,4]
[400505366,1767678643694,-223.93839011,0.00024213,4]
[400505368,1767678643703,-432.3385837,0.00024213,4]
[400505370,1767678643713,-197.30189059,0.00024213,4]
[400505372,1767678643722,-159.2619942,0.00024213,4]
[400505374,1767678643731,-173.08990061,0.0002424,4]
[400505376,1767678643741,-245.35927834,0.0002424,4]
[400505378,1767678643750,-250.74529518,0.0002424,4]
[400505380,1767678643760,-223.93839011,0.0002424,4]
[400505382,1767678643769,-432.3385837,0.0002424,4]
[400505384,1767678643778,-197.30189059,0.0002424,4]
[400505386,1767678643787,-159.2619942,0.0002424,4]
[400505388,1767678643797,-150.0,0.00024258,4]
[400505390,1767678643806,-150.0,0.00024259,4]
[400505392,1767678643816,-419.58933012,0.0002426,2]
[400505394,1767678643825,-173.08990061,0.00024267,4]
[400505396,1767678643834,-245.35927834,0.00024267,4]
[400505398,1767678643843,-250.74529518,0.00024267,4]
[400505400,1767678643853,-223.93839011,0.00024267,4]
[400505402,1767678643862,-432.3385837,0.00024267,4]
[400505404,1767678643871,-197.30189059,0.00024267,4]
[400505406,1767678643880,-159.2619942,0.00024267,4]
[400505408,1767678643889,-150.0,0.00024268,4]
[400505410,1767678643898,-150.0,0.00024288,4]
[400505412,1767678643908,-173.08990061,0.00024293,4]
[400505414,1767678643918,-245.35927834,0.00024293,4]
[400505416,1767678643927,-250.74529518,0.00024293,4]
[400505418,1767678643937,-223.93839011,0.00024293,4]
[400505420,1767678643947,-432.3385837,0.00024293,4]
[400505422,1767678643956,-197.30189059,0.00024293,4]
[400505424,1767678643965,-159.2619942,0.00024293,4]
[400505426,1767678643974,-150.0,0.00024308,4]
[400505428,1767678643983,-173.08990061,0.0002432,4]
[400505430,1767678643993,-245.35927834,0.0002432,4]
[400505432,1767678644002,-250.74529518,0.0002432,4]
[400505434,1767678644012,-223.93839011,0.0002432,4]
[400505436,1767678644021,-432.3385837,0.0002432,4]
[400505438,1767678644031,-197.30189059,0.0002432,4]
[400505440,1767678644041,-159.2619942,0.0002432,4]
[400505442,1767678644051,-150.0,0.00024331,4]
[400505444,1767678644060,-173.08990061,0.00024347,4]
[400505446,1767678644070,-245.35927834,0.00024347,4]
[400505448,1767678644079,-250.74529518,0.00024347,4]
[400505450,1767678644088,-223.93839011,0.00024347,4]
[400505452,1767678644098,-432.3385837,0.00024347,4]
[400505454,1767678644107,-197.30189059,0.00024347,4]
[400505456,1767678644116,-159.2619942,0.00024347,4]
[400505458,1767678644126,-150.0,0.00024358,4]
[400505460,1767678644135,-280.4953858,0.00024366,2]
[400505462,1767678644146,-150.0,0.00024369,4]
[400505464,1767678644156,-173.08990061,0.00024373,4]
[400505467,1767678644166,-245.35927834,0.00024373,4]
[400505468,1767678644176,-250.74529518,0.00024373,4]
[400505471,1767678644186,-223.93839011,0.00024373,4]
[400505472,1767678644195,-432.3385837,0.00024373,4]
[400505474,1767678644205,-197.30189059,0.00024373,4]
[400505476,1767678644214,-159.2619942,0.00024373,4]
[400505478,1767678644224,-1000.0,0.00024384,2]
[400505480,1767678644234,-173.08990061,0.000244,4]
[400505482,1767678644244,-245.35927834,0.000244,4]
[400505485,1767678644255,-250.74529518,0.000244,4]
[400505487,1767678644265,-223.93839011,0.000244,4]
[400505489,1767678644274,-432.3385837,0.000244,4]
[400505491,1767678644284,-197.30189059,0.000244,4]
[400505493,1767678644293,-159.2619942,0.000244,4]
[400505495,1767678644303,-218.7,0.00024401,2]
[400505497,1767678644315,-150.0,0.00024402,4]
[400505499,1767678644324,-150.0,0.00024408,4]
[400505501,1767678644334,-150.0,0.0002442,4]
[400505503,1767678644344,-173.08990061,0.00024427,4]
[400505505,1767678644353,-245.35927834,0.00024427,4]
[400505507,1767678644362,-250.74529518,0.00024427,4]
[400505509,1767678644372,-223.93839011,0.00024427,4]
[400505511,1767678644382,-432.3385837,0.00024427,4]
[400505513,1767678644392,-197.30189059,0.00024427,4]
[400505515,1767678644402,-159.2619942,0.00024427,4]
[400505517,1767678644412,-173.08990061,0.00024453,4]
[400505519,1767678644422,-245.35927834,0.00024453,4]
[400505521,1767678644431,-250.74529518,0.00024453,4]
[400505523,1767678644441,-223.93839011,0.00024453,4]
[400505525,1767678644450,-432.3385837,0.00024453,4]
[400505527,1767678644460,-197.30189059,0.00024453,4]
[400505529,1767678644469,-159.2619942,0.00024453,4]
[400505531,1767678644478,-150.0,0.00024457,4]
[400505533,1767678644488,-6299.5718385,0.00024464,2]
[400505535,1767678644497,-150.0,0.00024471,4]
[400505537,1767678644507,-150.0,0.00024474,4]
[400505539,1767678644517,-173.08990061,0.0002448,4]
[400505541,1767678644526,-245.35927834,0.0002448,4]
[400505543,1767678644535,-250.74529518,0.0002448,4]
[400505545,1767678644545,-223.93839011,0.0002448,4]
[400505547,1767678644554,-432.3385837,0.0002448,4]
[400505549,1767678644565,-197.30189059,0.0002448,4]
[400505551,1767678644574,-159.2619942,0.0002448,4]
[400505553,1767678644586,-173.08990061,0.00024507,4]
[400505555,1767678644596,-245.35927834,0.00024507,4]
[400505557,1767678644605,-250.74529518,0.00024507,4]
[400505559,1767678644615,-223.93839011,0.00024507,4]
[400505561,1767678644624,-432.3385837,0.00024507,4]
[400505563,1767678644639,-197.30189059,0.00024507,4]
[400505565,1767678644649,-159.2619942,0.00024507,4]
[400505567,1767678644658,-150.0,0.00024507,4]
[400505586,1767678644832,-150.0,0.00024514,4]
[400505588,1767678644842,-150.0,0.00024514,4]
[400505590,1767678644851,-173.08990061,0.00024533,4]
[400505592,1767678644860,-245.35927834,0.00024533,4]
[400505594,1767678644870,-250.74529518,0.00024533,4]
[400505596,1767678644880,-223.93839011,0.00024533,4]
[400505598,1767678644889,-432.3385837,0.00024533,4]
[400505600,1767678644899,-197.30189059,0.00024533,4]
[400505602,1767678644908,-159.2619942,0.00024533,4]
[400505604,1767678644917,-150.0,0.00024545,4]
[400505606,1767678644927,-163.93901323,0.0002455,15]
[400505608,1767678644936,-150.0,0.00024557,4]
[400505610,1767678644945,-166.66,0.00024557,30]
[400505612,1767678644954,-173.08990061,0.0002456,4]
[400505614,1767678644964,-245.35927834,0.0002456,4]
[400505616,1767678644974,-250.74529518,0.0002456,4]
[400505618,1767678644984,-223.93839011,0.0002456,4]
[400505620,1767678644993,-432.3385837,0.0002456,4]
[400505622,1767678645003,-197.30189059,0.0002456,4]
[400505624,1767678645013,-159.2619942,0.0002456,4]
[400505626,1767678645022,-150.0,0.00024572,4]
[400505628,1767678645032,-173.08990061,0.00024587,4]
[400505630,1767678645042,-245.35927834,0.00024587,4]
[400505632,1767678645052,-250.74529518,0.00024587,4]
[400505634,1767678645062,-223.93839011,0.00024587,4]
[400505636,1767678645071,-432.3385837,0.00024587,4]
[400505638,1767678645081,-197.30189059,0.00024587,4]
[400505640,1767678645090,-159.2619942,0.00024587,4]
[400505642,1767678645100,-150.0,0.00024607,4]
[400505644,1767678645109,-173.08990061,0.00024613,4]
[400505646,1767678645118,-245.35927834,0.00024613,4]
[400505648,1767678645128,-250.74529518,0.00024613,4]
[400505650,1767678645137,-223.93839011,0.00024613,4]
[400505652,1767678645146,-432.3385837,0.00024613,4]
[400505654,1767678645157,-197.30189059,0.00024613,4]
[400505657,1767678645166,-159.2619942,0.00024613,4]
[400505659,1767678645176,-150.0,0.00024616,4]
[400505661,1767678645185,-173.08990061,0.0002464,4]
[400505663,1767678645195,-245.35927834,0.0002464,4]
[400505665,1767678645205,-250.74529518,0.0002464,4]
[400505667,1767678645214,-150.0,0.0002464,4]
[400505669,1767678645224,-223.93839011,0.0002464,4]
[400505671,1767678645233,-150.0,0.0002464,4]
[400505673,1767678645243,-432.3385837,0.0002464,4]
[400505675,1767678645254,-197.30189059,0.0002464,4]
[400505677,1767678645264,-159.2619942,0.0002464,4]
[400505679,1767678645274,-596.50093463,0.0002465,2]
[400505681,1767678645283,-150.0,0.00024657,4]
[400505683,1767678645292,-1000.0,0.00024658,2]
[400505685,1767678645301,-1559.6,0.00024658,2]
[400505687,1767678645311,-153.020585,0.00024658,2]
[400505689,1767678645320,-151.0,0.00024658,2]
[400505691,1767678645329,-155.485538,0.00024658,2]
[400505693,1767678645339,-1000.0,0.00024658,2]
[400505695,1767678645348,-173.08990061,0.00024667,4]
[400505697,1767678645357,-245.35927834,0.00024667,4]
[400505699,1767678645367,-250.74529518,0.00024667,4]
[400505701,1767678645376,-223.93839011,0.00024667,4]
[400505703,1767678645386,-432.3385837,0.00024667,4]
[400505705,1767678645395,-197.30189059,0.00024667,4]
[400505707,1767678645404,-159.2619942,0.00024667,4]
[400505709,1767678645414,-300.0,0.00024671,2]
[400505711,1767678645423,-150.0,0.00024674,4]
[400505713,1767678645432,-150.0,0.00024688,4]
[400505715,1767678645442,-173.08990061,0.00024693,4]
[400505717,1767678645451,-245.35927834,0.00024693,4]
[400505719,1767678645460,-250.74529518,0.00024693,4]
[400505721,1767678645469,-223.93839011,0.00024693,4]
[400505723,1767678645479,-432.3385837,0.00024693,4]
[400505725,1767678645488,-197.30189059,0.00024693,4]
[400505727,1767678645497,-159.2619942,0.00024693,4]
[400505729,1767678645507,-3966.05613503,0.000247,2]
[400505731,1767678645516,-609.89470962,0.000247,2]
[400505733,1767678645526,-3669.8521325,0.000247,2]
[400505735,1767678645535,-150.0,0.00024706,4]
[400505737,1767678645545,-4609.0,0.00024716,2]
[400505739,1767678645554,-173.08990061,0.0002472,4]
[400505741,1767678645564,-245.35927834,0.0002472,4]
[400505743,1767678645573,-250.74529518,0.0002472,4]
[400505745,1767678645583,-223.93839011,0.0002472,4]
[400505747,1767678645593,-432.3385837,0.0002472,4]
[400505749,1767678645604,-197.30189059,0.0002472,4]
[400505751,1767678645613,-159.2619942,0.0002472,4]
[400505753,1767678645623,-173.08990061,0.00024747,4]
[400505755,1767678645638,-245.35927834,0.00024747,4]
[400505757,1767678645648,-250.74529518,0.00024747,4]
[400505758,1767678645657,-223.93839011,0.00024747,4]
[400505759,1767678645667,-432.3385837,0.00024747,4]
[400505760,1767678645677,-197.30189059,0.00024747,4]
[400505761,1767678645686,-159.2619942,0.00024747,4]
[400505762,1767678645695,-300.0,0.0002475,2]
[400505763,1767678645706,-500.0,0.00024756,7]
[400505764,1767678645715,-500.0,0.00024756,7]
[400505765,1767678645724,-700.0,0.00024756,7]
[400505766,1767678645733,-150.0,0.00024756,4]
[400505767,1767678645742,-150.0,0.00024759,4]
[400505769,1767678645752,-173.08990061,0.00024773,4]
[400505770,1767678645763,-245.35927834,0.00024773,4]
[400505772,1767678645772,-250.74529518,0.00024773,4]
[400505774,1767678645782,-223.93839011,0.00024773,4]
[400505776,1767678645792,-432.3385837,0.00024773,4]
[400505778,1767678645801,-197.30189059,0.00024773,4]
[400505779,1767678645811,-159.2619942,0.00024773,4]
[400505781,1767678645820,-150.0,0.00024775,4]
[400505783,1767678645830,-173.08990061,0.000248,4]
[400505784,1767678645839,-245.35927834,0.000248,4]
[400505785,1767678645848,-250.74529518,0.000248,4]
[400505786,1767678645858,-151.0,0.000248,7]
[400505787,1767678645868,-263.812146,0.000248,7]
[400505788,1767678645877,-223.93839011,0.000248,4]
[400505789,1767678645886,-432.3385837,0.000248,4]
[400505790,1767678645895,-197.30189059,0.000248,4]
[400505791,1767678645905,-159.2619942,0.000248,4]
[400505792,1767678645914,-378.020033,0.000248,7]
[400505793,1767678645925,-378.020033,0.000248,7]
[400505794,1767678645934,-378.020033,0.000248,7]
[400505795,1767678645944,-441.117051,0.000248,2]
[400505796,1767678645954,-378.020033,0.000248,7]
[400505797,1767678645963,-441.117051,0.000248,2]
[400505798,1767678645972,-441.117051,0.000248,2]
[400505799,1767678645982,-441.117051,0.000248,2]
[400505800,1767678645991,-151.0,0.000248,7]
[400505801,1767678646000,-151.0,0.000248,7]
[400505802,1767678646009,-151.0,0.000248,7]
[400505803,1767678646019,-112723.13188842,0.000248,3]
[400505806,1767678646192,-11471.41658462,0.000248,3]
[400505807,1767678646203,-39468.99506,0.000248,3]
[400505808,1767678646218,-426.61846658,0.000248,3]
[400505809,1767678646229,-480.71237647,0.000248,3]
[400505811,1767678646246,-713.27716413,0.000248,3]
[400505812,1767678646260,-500.0,0.000248,3]
[400505813,1767678646271,-10516.64293417,0.000248,3]
[400505814,1767678646282,-1568.76854122,0.000248,3]
[400505815,1767678646293,-1771.36062852,0.000248,3]
[400505816,1767678646304,-639.31888652,0.000248,3]
[400505817,1767678646317,-913.64,0.000248,3]
[400505818,1767678646329,-915.68180285,0.000248,3]
[400505819,1767678646340,-830.62918981,0.000248,3]
[400505820,1767678646353,-9465.01389283,0.000248,3]
[400505821,1767678646383,-766.80359483,0.000248,3]
[400505822,1767678646645,-159.353982,0.0002099,2]
[400505823,1767678646654,-151.0,0.0002099,2]
[400505824,1767678646664,-36.69996,0.00023,2]
[400505825,1767678646676,-114.30004,0.00023,2]
[400505826,1767678646686,-210314.45192144,0.000248,3]
[400505827,1767678646700,-833.11470654,0.000248,3]
[400505828,1767678646724,-5945.50145145,0.000248,3]
[400505829,1767678646735,-4268.69696162,0.000248,3]
[400505830,1767678646751,-311.98467859,0.000248,3]
[400505831,1767678646763,-524.9326699,0.000248,3]
[400505832,1767678646784,-190110.98625149,0.000248,3]
[400505833,1767678646794,-2336.943815,0.000248,7]
[400505834,1767678646803,-2336.943815,0.000248,7]
[400505835,1767678646815,-2336.943815,0.000248,7]
[400505836,1767678646824,-204.173232,0.000248,7]
[400505837,1767678646835,-2336.943815,0.000248,7]
[400505838,1767678646845,-204.173232,0.000248,7]
[400505839,1767678646857,-204.173232,0.000248,7]
[400505840,1767678646868,-204.173232,0.000248,7]
[400505841,1767678646878,-481.7358,0.000248,7]
[400505842,1767678646888,-481.7358,0.000248,7]
[400505843,1767678646897,-481.7358,0.000248,7]
[400505844,1767678646906,-481.7358,0.000248,7]
[400505845,1767678646915,-151.0,0.000248,7]
[400505846,1767678646925,-150.0,0.00024806,4]
[400505847,1767678646934,-150.0,0.00024816,4]
[400505848,1767678646945,-173.08990061,0.00024827,4]
[400505849,1767678646954,-245.35927834,0.00024827,4]
[400505850,1767678646963,-250.74529518,0.00024827,4]
[400505851,1767678646971,-223.93839011,0.00024827,4]
[400505852,1767678646981,-432.3385837,0.00024827,4]
[400505853,1767678646991,-197.30189059,0.00024827,4]
[400505854,1767678647000,-159.2619942,0.00024827,4]
[400505855,1767678647009,-150.0,0.0002483,4]
[400505856,1767678647068,-300.0,0.00024839,2]
[400505857,1767678647077,-173.08990061,0.00024853,4]
[400505858,1767678647086,-245.35927834,0.00024853,4]
[400505859,1767678647095,-250.74529518,0.00024853,4]
[400505860,1767678647105,-223.93839011,0.00024853,4]
[400505861,1767678647114,-432.3385837,0.00024853,4]
[400505862,1767678647123,-197.30189059,0.00024853,4]
[400505863,1767678647131,-159.2619942,0.00024853,4]
[400505864,1767678647140,-150.0,0.00024856,4]
[400505865,1767678647150,-150.0,0.0002486,4]
[400505866,1767678647159,-150.0,0.00024877,4]
[400505867,1767678647168,-173.08990061,0.0002488,4]
[400505868,1767678647178,-245.35927834,0.0002488,4]
[400505869,1767678647187,-250.74529518,0.0002488,4]
[400505870,1767678647197,-223.93839011,0.0002488,4]
[400505871,1767678647207,-432.3385837,0.0002488,4]
[400505872,1767678647216,-197.30189059,0.0002488,4]
[400505873,1767678647225,-159.2619942,0.0002488,4]
[400505874,1767678647235,-150.0,0.00024891,4]
[400505875,1767678647244,-150.0,0.00024891,4]
[400505876,1767678647254,-607599.872917,0.000249,3]
[400505877,1767678647263,-481.7358,0.000249,7]
[400505878,1767678647272,-481.7358,0.000249,7]
[400505879,1767678647282,-481.7358,0.000249,7]
[400505880,1767678647291,-481.735803,0.000249,7]
[400505881,1767678647300,-151.0,0.000249,7]
[400505882,1767678647310,-150.0,0.00024902,4]
[400505883,1767678647320,-150.0,0.00024906,4]
[400505884,1767678647329,-173.08990061,0.00024907,4]
[400505885,1767678647338,-245.35927834,0.00024907,4]
[400505886,1767678647347,-250.74529518,0.00024907,4]
[400505887,1767678647356,-223.93839011,0.00024907,4]
[400505888,1767678647366,-432.3385837,0.00024907,4]
[400505889,1767678647375,-197.30189059,0.00024907,4]
[400505890,1767678647384,-159.2619942,0.00024907,4]
[400505891,1767678647394,-170.84,0.00024924,2]
[400505892,1767678647403,-1000.0,0.00024932,2]
[400505893,1767678647412,-173.08990061,0.00024933,4]
[400505894,1767678647421,-245.35927834,0.00024933,4]
[400505895,1767678647430,-250.74529518,0.00024933,4]
[400505896,1767678647439,-223.93839011,0.00024933,4]
[400505897,1767678647448,-432.3385837,0.00024933,4]
[400505898,1767678647458,-197.30189059,0.00024933,4]
[400505899,1767678647467,-159.2619942,0.00024933,4]
[400505900,1767678647477,-150.0,0.00024955,4]
[400505901,1767678647486,-173.08990061,0.0002496,4]
[400505902,1767678647495,-245.35927834,0.0002496,4]
[400505903,1767678647504,-250.74529518,0.0002496,4]
[400505904,1767678647518,-223.93839011,0.0002496,4]
[400505905,1767678647527,-432.3385837,0.0002496,4]
[400505906,1767678647536,-197.30189059,0.0002496,4]
[400505907,1767678647545,-159.2619942,0.0002496,4]
[400505908,1767678647555,-150.0,0.00024973,4]
[400505909,1767678647564,-300.0,0.00024976,2]
[400505910,1767678647573,-150.0,0.00024978,4]
[400505911,1767678647583,-173.08990061,0.00024987,4]
[400505912,1767678647592,-245.35927834,0.00024987,4]
[400505913,1767678647611,-250.74529518,0.00024987,4]
[400505914,1767678647620,-223.93839011,0.00024987,4]
[400505915,1767678647633,-432.3385837,0.00024987,4]
[400505916,1767678647646,-197.30189059,0.00024987,4]
[400505917,1767678647655,-159.2619942,0.00024987,4]
[400505918,1767678647665,-152.0,0.00024998,6]
[400505919,1767678647675,-26252.70710863,0.00025,2]
[400505920,1767678647684,-170.0,0.00025,7]
[400505921,1767678647692,-156.0,0.00025,7]
[400505922,1767678647703,-7040.05553666,0.00025,2]
[400505923,1767678647712,-150.0,0.00025005,4]
[400505924,1767678647720,-173.08990061,0.00025013,4]
[400505925,1767678647729,-245.35927834,0.00025013,4]
[400505926,1767678647738,-250.74529518,0.00025013,4]
[400505927,1767678647748,-223.93839011,0.00025013,4]
[400505928,1767678647757,-432.3385837,0.00025013,4]
[400505929,1767678647766,-197.30189059,0.00025013,4]
[400505930,1767678647775,-159.2619942,0.00025013,4]
[400505931,1767678647784,-173.08990061,0.0002504,4]
[400505932,1767678647793,-245.35927834,0.0002504,4]
[400505933,1767678647802,-250.74529518,0.0002504,4]
[400505934,1767678647811,-223.93839011,0.0002504,4]
[400505935,1767678647820,-432.3385837,0.0002504,4]
[400505936,1767678647829,-197.30189059,0.0002504,4]
[400505937,1767678647839,-159.2619942,0.0002504,4]
[400505938,1767678647848,-150.0,0.00025044,4]
[400505939,1767678647857,-170.83621576,0.00025049,2]
[400505940,1767678647866,-150.0,0.00025055,4]
[400505941,1767678647875,-166.66,0.00025063,30]
[400505942,1767678647883,-173.08990061,0.00025067,4]
[400505943,1767678647893,-245.35927834,0.00025067,4]
[400505944,1767678647902,-250.74529518,0.00025067,4]
[400505945,1767678647912,-223.93839011,0.00025067,4]
[400505946,1767678647923,-432.3385837,0.00025067,4]
[400505947,1767678647932,-197.30189059,0.00025067,4]
[400505948,1767678647941,-159.2619942,0.00025067,4]
[400505949,1767678647951,-150.0,0.0002508,4]
[400505950,1767678647960,-150.0,0.0002508,4]
[400505951,1767678647969,-150.0,0.0002508,4]
[400505952,1767678647982,-173.08990061,0.00025093,4]
[400505953,1767678647991,-245.35927834,0.00025093,4]
[400505954,1767678648000,-250.74529518,0.00025093,4]
[400505955,1767678648009,-223.93839011,0.00025093,4]
[400505956,1767678648019,-432.3385837,0.00025093,4]
[400505957,1767678648028,-197.30189059,0.00025093,4]
[400505958,1767678648037,-159.2619942,0.00025093,4]
[400505959,1767678648046,-7713.73,0.000251,7]
[400505960,1767678648055,-150.0,0.00025105,4]
[400505961,1767678648066,-150.0,0.00025116,4]
[400505962,1767678648075,-173.08990061,0.0002512,4]
[400505963,1767678648085,-245.35927834,0.0002512,4]
[400505964,1767678648095,-250.74529518,0.0002512,4]
[400505965,1767678648106,-223.93839011,0.0002512,4]
[400505966,1767678648115,-432.3385837,0.0002512,4]
[400505967,1767678648124,-197.30189059,0.0002512,4]
[400505968,1767678648133,-159.2619942,0.0002512,4]
[400505969,1767678648142,-173.08990061,0.00025147,4]
[400505970,1767678648151,-245.35927834,0.00025147,4]
[400505971,1767678648160,-250.74529518,0.00025147,4]
[400505972,1767678648170,-223.93839011,0.00025147,4]
[400505973,1767678648181,-432.3385837,0.00025147,4]
[400505974,1767678648192,-197.30189059,0.00025147,4]
[400505975,1767678648202,-159.2619942,0.00025147,4]
[400505976,1767678648212,-150.0,0.00025155,4]
[400505977,1767678648222,-173.08990061,0.00025173,4]
[400505978,1767678648231,-245.35927834,0.00025173,4]
[400505979,1767678648241,-250.74529518,0.00025173,4]
[400505980,1767678648250,-223.93839011,0.00025173,4]
[400505981,1767678648259,-432.3385837,0.00025173,4]
[400505982,1767678648268,-197.30189059,0.00025173,4]
[400505983,1767678648278,-159.2619942,0.00025173,4]
[400505984,1767678648288,-150.0,0.00025182,4]
[400505985,1767678648298,-150.0,0.00025187,4]
[400505986,1767678648307,-173.08990061,0.000252,4]
[400505987,1767678648319,-245.35927834,0.000252,4]
[400505988,1767678648330,-250.74529518,0.000252,4]
[400505989,1767678648340,-223.93839011,0.000252,4]
[400505990,1767678648350,-432.3385837,0.000252,4]
[400505991,1767678648359,-197.30189059,0.000252,4]
[400505992,1767678648368,-159.2619942,0.000252,4]
[400505993,1767678648378,-150.0,0.00025205,4]
[400505994,1767678648388,-1000.0,0.00025205,2]
[400505995,1767678648397,-173.08990061,0.00025227,4]
[400505996,1767678648406,-245.35927834,0.00025227,4]
[400505997,1767678648416,-250.74529518,0.00025227,4]
[400505998,1767678648425,-223.93839011,0.00025227,4]
[400505999,1767678648435,-432.3385837,0.00025227,4]
[400506000,1767678648444,-197.30189059,0.00025227,4]
[400506001,1767678648452,-159.2619942,0.00025227,4]
[400506002,1767678648462,-173.08990061,0.00025253,4]
[400506003,1767678648472,-245.35927834,0.00025253,4]
[400506004,1767678648482,-250.74529518,0.00025253,4]
[400506005,1767678648491,-223.93839011,0.00025253,4]
[400506006,1767678648501,-432.3385837,0.00025253,4]
[400506007,1767678648510,-197.30189059,0.00025253,4]
[400506008,1767678648521,-159.2619942,0.00025253,4]
[400506009,1767678648530,-150.0,0.00025254,4]
[400506010,1767678648540,-150.0,0.00025258,4]
[400506011,1767678648550,-150.0,0.00025269,4]
[400506012,1767678648559,-150.0,0.00025269,4]
[400506013,1767678648570,-173.08990061,0.0002528,4]
[400506014,1767678648579,-245.35927834,0.0002528,4]
[400506015,1767678648589,-250.74529518,0.0002528,4]
[400506016,1767678648598,-223.93839011,0.0002528,4]
[400506017,1767678648608,-432.3385837,0.0002528,4]
[400506018,1767678648617,-197.30189059,0.0002528,4]
[400506019,1767678648626,-159.2619942,0.0002528,4]
[400506020,1767678648640,-150.0,0.00025283,4]
[400506021,1767678648649,-150.0,0.000253,4]
[400506022,1767678648659,-150.0,0.00025304,4]
[400506023,1767678648668,-173.08990061,0.00025307,4]
[400506024,1767678648678,-245.35927834,0.00025307,4]
[400506025,1767678648687,-250.74529518,0.00025307,4]
[400506026,1767678648698,-223.93839011,0.00025307,4]
[400506027,1767678648710,-432.3385837,0.00025307,4]
[400506028,1767678648719,-197.30189059,0.00025307,4]
[400506029,1767678648729,-159.2619942,0.00025307,4]
[400506030,1767678648738,-5990.99,0.00025324,2]
[400506031,1767678648748,-150.0,0.0002533,4]
[400506032,1767678648757,-173.08990061,0.00025333,4]
[400506033,1767678648766,-245.35927834,0.00025333,4]
[400506034,1767678648775,-250.74529518,0.00025333,4]
[400506035,1767678648785,-223.93839011,0.00025333,4]
[400506036,1767678648794,-432.3385837,0.00025333,4]
[400506037,1767678648804,-197.30189059,0.00025333,4]
[400506038,1767678648815,-159.2619942,0.00025333,4]
[400506039,1767678648824,-150.0,0.00025344,4]
[400506040,1767678648833,-1329.0,0.0002535,2]
[400506041,1767678648843,-1202.24,0.0002535,2]
[400506042,1767678648852,-6549.0,0.0002535,2]
[400506043,1767678648862,-2435.0,0.0002535,2]
[400506044,1767678648871,-150.0,0.00025354,4]
[400506045,1767678648881,-173.08990061,0.0002536,4]
[400506046,1767678648890,-245.35927834,0.0002536,4]
[400506047,1767678648899,-250.74529518,0.0002536,4]
[400506048,1767678648910,-223.93839011,0.0002536,4]
[400506049,1767678648920,-432.3385837,0.0002536,4]
[400506050,1767678648929,-197.30189059,0.0002536,4]
[400506051,1767678648939,-159.2619942,0.0002536,4]
[400506052,1767678648948,-150.0,0.00025385,4]
[400506053,1767678648958,-173.08990061,0.00025387,4]
[400506054,1767678648967,-245.35927834,0.00025387,4]
[400506055,1767678648976,-250.74529518,0.00025387,4]
[400506056,1767678648985,-223.93839011,0.00025387,4]
[400506057,1767678648994,-432.3385837,0.00025387,4]
[400506058,1767678649003,-197.30189059,0.00025387,4]
[400506059,1767678649012,-159.2619942,0.00025387,4]
[400506060,1767678649022,-6299.5718385,0.00025393,2]
[400506061,1767678649031,-150.0,0.00025401,4]
[400506062,1767678649040,-150.0,0.00025404,4]
[400506063,1767678649049,-173.08990061,0.00025413,4]
[400506064,1767678649059,-245.35927834,0.00025413,4]
[400506065,1767678649069,-250.74529518,0.00025413,4]
[400506066,1767678649079,-223.93839011,0.00025413,4]
[400506067,1767678649089,-432.3385837,0.00025413,4]
[400506068,1767678649097,-197.30189059,0.00025413,4]
[400506069,1767678649107,-159.2619942,0.00025413,4]